Cogmind - Beta 12 @@@ ROGUE MODE // 2024.02.22 @ 22:18:46 // Winter2019/RPGLIKE Player: Luminiferous Result: Destroyed by Y-45 Defender with Heavy Assault Rifle Performance ------------- Evolutions (1) 500 Regions Visited (3) 600 Robots Destroyed (27) 135 Value Destroyed (539) 539 Prototype IDs (1) 20 Alien Tech Used (0) 0 Bonus (50) 50 TOTAL SCORE: 1844 Bonus ------- Follower Combat Kills 50 Cogmind --------- Core Integrity 0/600 Matter 250/300 Energy 160/160 System Corruption 0% Temperature Cool (6) Movement Rolling (95) Ox1 Location -9/Materials Parts ------- > --- POWER (1) -------- Light Nuclear Core > --- PROPULSION (2) --- Wheel Wheel > --- UTILITY (2) ------ Sensor Array Hardened Medium Armor Plating > --- WEAPON (2) ------- Advanced Beam Cannon Grenade Launcher > --- INVENTORY (3) ---- VTOL Module Beam Cannon Beam Cannon Peak State ------------ > --- POWER ------------ Light Nuclear Core > --- PROPULSION ------- Wheel Wheel > --- UTILITY ---------- Sensor Array Hardened Medium Armor Plating > --- WEAPON ----------- Beam Cannon Advanced Beam Cannon > --- INVENTORY -------- Ion Engine Beam Cannon Grenade Launcher [Rating: 13] Favorites ----------- Power Ion Engine Engine Ion Engine Power Core Light Nuclear Core Propulsion Wheel Leg Aluminum Leg Wheel Wheel Utility Sensor Array Device Sensor Array Protection Hardened Medium Armor Plating Weapon Beam Cannon Energy Cannon Beam Cannon Ballistic Gun Light Assault Rifle Launcher Grenade Launcher Build | -11 -10 -10 -9 ------- Run | Jun Mat Min Mat Slots Evolved 3 | 3 . . . Power . | . . . . Propulsion 1 | 1 . . . Utility 1 | 1 . . . Weapon 1 | 1 . . . Parts Attached 22 | 3 7 7 5 Power 1 | . . . 1 Engine . | . . . . Core 1 | . . . 1 Reactor . | . . . . Propulsion 2 | 2 . . . Treads . | . . . . Leg . | . . . . Wheel 2 | 2 . . . Hover . | . . . . Flight . | . . . . Utility 4 | . 2 2 . Device 3 | . 2 1 . Storage . | . . . . Processor . | . . . . Hackware . | . . . . Protection 1 | . . 1 . Artifact . | . . . . Weapon 15 | 1 5 5 4 Energy Gun . | . . . . Energy Cannon 8 | . 3 3 2 Ballistic Gun 1 | 1 . . . Ballistic Cannon . | . . . . Launcher 6 | . 2 2 2 Special Weapon . | . . . . Impact Weapon . | . . . . Slashing Weapon . | . . . . Piercing Weapon . | . . . . Special Melee Weapon . | . . . . Unidentified Prototypes 1 | . . . 1 Parts Lost . | . . . . Power . | . . . . Propulsion . | . . . . Utility . | . . . . Weapon . | . . . . Highest Loss Streak . | . . . . To Critical Strikes . | . . . . Average Slot Usage (%) 92 | . 84 94 100 Engine 11 | . 14 14 6 Core 2 | . . . 7 Wheel 28 | . 28 28 28 Device 13 | . 13 14 14 Protection 7 | . . 8 14 Energy Cannon 23 | . 16 27 26 Ballistic Gun 3 | . 11 . . Naked Turns . | . . . . Heaviest Build 21 | 8 13 20 21 Greatest Support 20 | 20 20 20 20 Greatest Overweight (x) 1 | . . . 1 Average Overweight (x) . | . . . . Largest Inventory Capacity 3 | 3 3 3 3 Average Capacity 2 | 2 3 3 3 Most Carried 3 | 2 3 2 3 Average Carried 1 | . . 1 2 Final Capacity 3 | 3 3 3 3 Final Carried 3 | . 1 1 3 Class Distribution -------------------- 100% | Mutant Dominant Class ---------------- Mutant | -10/Materials Mutant | -10/Mines Mutant | -9/Materials Resources | -11 -10 -10 -9 ----------- Run | Jun Mat Min Mat Matter Collected 598 | 200 218 120 60 Remotely . | . . . . Salvage Created 701 | . 334 99 268 Parts 49 | . 16 15 18 Haulers Intercepted 2 | . 1 . 1 Recyclers Shooed . | . . . . Parts Field Recycled . | . . . . Retrieved Matter . | . . . . Parts Self-Destructed . | . . . . Prevented . | . . . . Kills | -11 -10 -10 -9 ------- Run | Jun Mat Min Mat Combat Hostiles Destroyed 21 | . 10 8 3 Guns 4 | . 4 . . Cannons 10 | . 3 4 3 AOE 7 | . 3 4 . Classes Destroyed 6 | . 3 1 2 Worker 1 | . . 1 . Hauler 2 | . 1 . 1 Watcher 3 | . . . 3 Swarmer 12 | . 6 6 . Grunt 8 | . 4 2 2 Sentry 1 | . . . 1 Best Kill Streak 7 | . 6 7 2 Combat Bots Only 6 | . 6 6 1 Max Kills in Single Turn 2 | . 2 2 1 Gunslinging . | . . . . Exploded 2 | . 2 2 . Melee . | . . . . Uniques/NPCs Destroyed . | . . . . Combat | -11 -10 -10 -9 -------- Run | Jun Mat Min Mat Damage Taken 1015 | . 325 173 517 Core 811 | . 282 123 406 Absorbed by Shields . | . . . . Redirected to Core 530 | . 141 104 285 Core Remaining (%) 83 | 100 . 66 . Volleys Fired 68 | . 40 14 14 Largest 2 | . 2 2 2 Hottest 128 | . 120 120 128 Shots Fired 136 | . 80 28 28 Gun 54 | . 54 . . Cannon 70 | . 24 24 22 Launcher 12 | . 2 4 6 Special . | . . . . Kinetic 54 | . 54 . . Thermal 70 | . 24 24 22 Explosive 12 | . 2 4 6 Electromagnetic . | . . . . Robot Hit Streak 16 | . 16 4 5 Robot Miss Streak 2 | . 2 2 2 Penetration Max . | . . . . Secondary Targets . | . . . . Shots Hit Robots 75 | . 52 11 12 Core Hits 34 | . 18 9 7 Critical Kills . | . . . . Critical Parts Destroyed 2 | . 2 . . Critical Strikes 2 | . 2 . . Destroy 2 | . 2 . . Melee Attacks . | . . . . Impact . | . . . . Slashing . | . . . . Piercing . | . . . . Sneak Attacks . | . . . . Combat Hostiles . | . . . . Follow-up Attacks . | . . . . Damage Inflicted 1658 | . 826 464 368 Guns 422 | . 422 . . Cannons 669 | . 243 175 251 Explosions 567 | . 161 289 117 Melee . | . . . . Ramming . | . . . . Kinetic 422 | . 422 . . Thermal 669 | . 243 175 251 Explosive 567 | . 161 289 117 Electromagnetic . | . . . . Impact . | . . . . Slashing . | . . . . Piercing . | . . . . Highest Corruption . | . . . . Average Corruption . | . . . . Corruption Purged . | . . . . Corruption Blocked . | . . . . Overload Shots . | . . . . Overflow Damage 40 | . 7 33 . Projectiles 4 | . 4 . . Explosions 36 | . 3 33 . Melee . | . . . . Knockbacks . | . . . . Impact . | . . . . Kinetic . | . . . . Secondary . | . . . . Self-Inflicted Damage 78 | . . 40 38 Shots 2 | . . 1 1 Rammed . | . . . . Targets Rammed . | . . . . Kicked . | . . . . Crushed . | . . . . Highest Temperature 475 | . 360 475 39 Average Temperature 125 | . 96 167 27 Received Heat Transfer 234 | . 120 30 84 Effects 5 | . . 5 . Shutdowns 2 | . . 2 . Interference 3 | . . 3 . Siege Activations . | . . . . Robots Corrupted . | . . . . Combat Hostiles . | . . . . Parts Fried . | . . . . Impact Corruptions . | . . . . Robots Melted . | . . . . Combat Hostiles . | . . . . Parts Melted 4 | . 1 1 2 Heat Transferred 1369 | . 518 370 481 Parts Sabotaged . | . . . . Parts Stolen . | . . . . Parts Stripped . | . . . . Power Chain Reactions . | . . . . Missiles Intercepted . | . . . . Alert | -11 -10 -10 -9 ------- Run | Jun Mat Min Mat Peak Influence 306 | . 306 295 294 Initial 74 | . . 74 37 Average 149 | . 143 185 116 Maximum Alert Level 1 | . 1 1 1 Low Security (%) 67 | 100 72 48 85 Level 1 32 | . 27 51 14 Level 2 . | . . . . Level 3 . | . . . . Level 4 . | . . . . Level 5 . | . . . . High Security . | . . . . Max Security . | . . . . Squads Dispatched 2 | . 1 1 . Investigation 2 | . 1 1 . Extermination . | . . . . Reinforcement . | . . . . Assault . | . . . . Garrison . | . . . . Intercept . | . . . . Searches Triggered . | . . . . Construction Impeded . | . . . . Haulers Reinforced . | . . . . Active Scanning Responses . | . . . . Cargo Convoy Interrupts . | . . . . Stealth | -11 -10 -10 -9 --------- Run | Jun Mat Min Mat Distress Signals 6 | . 1 . 5 Communications Jammed . | . . . . Distress Signals . | . . . . Times Spotted 36 | . 16 8 12 Peak Tracking Total 6 | . 6 3 5 Tactical Retreats 2 | . 2 . . Traps | -11 -10 -10 -9 ------- Run | Jun Mat Min Mat Traps Triggered . | . . . . Indirectly . | . . . . Trap Hack Attempts . | . . . . Triggered . | . . . . Disarmed . | . . . . Reprogrammed . | . . . . Reused . | . . . . Traps Extracted . | . . . . Installed . | . . . . Triggered . | . . . . Machines | -11 -10 -10 -9 ---------- Run | Jun Mat Min Mat Machines Disabled 1 | . . . 1 Max in Single Turn 1 | . . . 1 Machines Repaired . | . . . . Machines Sabotaged . | . . . . Overloaded Fab Kills . | . . . . Hacking | -11 -10 -10 -9 --------- Run | Jun Mat Min Mat Machines Accessed 4 | . 3 1 . Terminals 3 | . 3 . . Fabricators . | . . . . Repair Stations . | . . . . Recycling Units . | . . . . Scanalyzers . | . . . . Garrison Access . | . . . . Total Hacks 12 | . 11 1 . Successful 7 | . 6 1 . Failed 5 | . 5 . . Catastrophic . | . . . . Database Lockouts . | . . . . Manual 11 | . 11 . . Terminals 11 | . 11 . . Fabricators . | . . . . Repair Stations . | . . . . Recycling Units . | . . . . Scanalyzers . | . . . . Garrison Access . | . . . . Terminal Hacks 4 | . 3 1 . Open Door 1 | . . 1 . Branch Access Points 1 | . 1 . . Terminal Index 1 | . 1 . . Hauler Manifests 1 | . 1 . . Fabricator Hacks . | . . . . Repair Station Hacks . | . . . . Recycling Unit Hacks . | . . . . Scanalyzer . | . . . . Garrison Access Hacks . | . . . . Unauthorized Hacks 3 | . 3 . . Terminals 3 | . 3 . . Botnet 3 | . 3 . . Fabricators . | . . . . Repair Stations . | . . . . Recycling Units . | . . . . Scanalyzers . | . . . . Garrison Access . | . . . . Data Cores Recovered 1 | . . . 1 Used . | . . . . Hacking Detections 3 | . 3 . . Full Trace Events 1 | . 1 . . Feedback Events . | . . . . Feedback Blocked . | . . . . Robot Schematics Acquired . | . . . . Robots Built . | . . . . Authchips . | . . . . Time . | . . . . Total Robot Build Rating . | . . . . Part Schematics Acquired . | . . . . Parts Built . | . . . . Authchips . | . . . . Time . | . . . . Total Part Build Rating . | . . . . Parts Repaired . | . . . . Time . | . . . . Parts Recycled . | . . . . Recycled Matter . | . . . . Retrieved Matter . | . . . . Retrieved Components . | . . . . Parts Scanalyzed . | . . . . Part Schematics Acquired . | . . . . Parts Damaged . | . . . . Bothacking | -11 -10 -10 -9 ------------ Run | Jun Mat Min Mat Used RIF Installer . | . . . . Robots Hacked . | . . . . Non-combat . | . . . . Combat . | . . . . Robot Hacks Applied . | . . . . Relay Couplers Released . | . . . . Fabnet Peak Effective % . | . . . . Robots Rewired . | . . . . Allies Hacked . | . . . . Hacks Repelled . | . . . . Allies | -11 -10 -10 -9 -------- Run | Jun Mat Min Mat Total Allies 1 | . . 1 . Largest Group 1 | . . 1 1 Highest-Rated Group 31 | . . 31 31 Highest-Rated Ally 31 | . . 31 31 Total Orders . | . . . . Ally Attacks 11 | . . . 11 Total Damage 125 | . . . 125 Kills 2 | . . . 2 Allies Corrupted . | . . . . Allies Melted . | . . . . Intel | -11 -10 -10 -9 ------- Run | Jun Mat Min Mat Robot Analysis Total . | . . . . Derelict Logs Recovered 2 | . . 2 . Drone Launches . | . . . . Drone Recoveries . | . . . . Exploration | -11 -10 -10 -9 ------------- Run | Jun Mat Min Mat Turns Passed 1369 | 10 481 486 392 Spaces Moved 1106 | 4 314 467 321 Core . | . . . . Treads . | . . . . Legs 2 | 2 . . . Wheels 1104 | 2 314 467 321 Hover . | . . . . Flight . | . . . . Fastest Speed 80 | 80 80 80 80 Average Speed 83 | 100 80 80 93 Slowest Speed 120 | 120 80 80 95 Overloaded Moves . | . . . . Propulsion Burnouts . | . . . . Robots Hopped . | . . . . Cave-ins Triggered 1 | . . . 1 Exploration Rate (%) 40 | 2 53 82 24 Regions Visited 3 Branch Regions 1 Pre-discovered Areas 1 | . . 1 . Known Exits Taken 1 | . 1 . . Unknown Exits Taken 2 | 1 . 1 . Scrap Searched 1 | . . 1 . Spaces Dug 6 | . . . 6 Terrain Destroyed 84 | . 9 33 42 Melee . | . . . . Projectile . | . . . . AOE 84 | . 9 33 42 Terrain Rammed . | . . . . Walls Destroyed . | . . . . Machines Disabled . | . . . . Actions | -11 -10 -10 -9 --------- Run | Jun Mat Min Mat Total 1411 | 10 469 549 383 Wait 188 | . 98 51 39 Move 1103 | 3 313 466 321 Hop . | . . . . Pick Up 13 | 3 5 2 3 Fast Attach . | . . . . Attach 9 | 3 4 2 . Detach . | . . . . Swap 13 | . 3 5 5 Drop 6 | 1 3 1 1 Fire 68 | . 40 14 14 Melee . | . . . . Ram . | . . . . Kick . | . . . . Crush . | . . . . Escape Stasis . | . . . . Rewire . | . . . . Trap . | . . . . Miscellaneous 11 | . 3 8 . Route ------- -11/Junkyard -10/Materials (discovered 2 exits: [*Mat] / *Min) -10/Mines -9/Materials History --------- Turn | Location | Event 1 | -11/Junkyard | Discovered new exit (range 1) 3 | -11/Junkyard | Upgraded with Propulsion slot (x1) 3 | -11/Junkyard | Upgraded with Utility slot (x1) 3 | -11/Junkyard | Upgraded with Weapon slot (x1) 11 | -11/Junkyard | Entered Materials 316 | -10/Materials | Build established: Mutant 439 | -10/Materials | Identified exit to Mines 463 | -10/Materials | Discovered new exit (range 10) 492 | -10/Materials | Entered Mines 494 | -10/Mines | Reached level 2 537 | -10/Mines | Learned location of Zion (-6) 555 | -10/Mines | Met a Derelict bent on vengeance 576 | -10/Mines | Learned Materials garrison access intel 627 | -10/Mines | Core integrity fell below 50% 661 | -10/Mines | Met a Derelict shopkeep closing up shop 896 | -10/Mines | Discovered new exit (range 9) 897 | -10/Mines | Received a Mining Laser from a helpful Derelict 978 | -10/Mines | Entered Materials 978 | -9/Materials | Accompanied by 1 ally 980 | -9/Materials | Reached level 3 1147 | -9/Materials | Reached level 4 1221 | -9/Materials | Crushed by falling debris 1221 | -9/Materials | Core integrity fell below 50% 1221 | -9/Materials | Core integrity fell below 20% 1370 | -9/Materials | Destroyed by Y-45 Defender with Heavy Assault Rifle Last Messages --------------- 01228_ The unstable cave ceiling collapses. 01228_ U-05 Engineer lays Concrete. 01228_ K-01 Serf collects debris. 01229_ U-05 Engineer lays Concrete. 01229_ U-05 Engineer builds a Wall. 01230_ U-05 Engineer lays Concrete. 01236_ U-05 Engineer builds a Wall. 01248_ 77-7CZ(g) destroyed. 01253_ Y-45 Defender destroyed. 01258_ Acquired 40 matter. 01262_ U-05 Engineer builds a Wall. 01270_ Acquired VTOL Module. 01282_ U-05 Engineer lays Concrete. 01312_ A-02 Transporter destroyed. 01328_ R-06 Scavenger collects Lgt. Treads. 01341_ W-16 Scout sends out distress signal. 01358_ W-16 Scout destroyed. 01364_ Critical hit (Burn: +37). 01365_ G-34 Mercenary destroyed. 01365_ Material Compactor disabled. Map ----- +----------------------------------------------------+ | ????????????????????????????????????????? | | #??????????????????????????????????????????? | | ##??????????????????????????????????????????? | | #???????????????????????????????????????????? | | ## % #???????????????????????????????????????????? | | ?#[ +???????????????????????????????????????????? | | ?# #???????????????????????????????????????????? | | ?# #???????????????????????????????????????????? | | ?# #???????????????????????????????????????????? | | ?# ##??????????????????????????????????????????? | | ?# = ???????????????????????????????????????????? | | # %[#?###########???????????????????????????????? | | / % #?# !!! #???????????????????????????????? | | ?# #?# !!! #???????????????????????????????? | | ?# #?# !! #???????????????????????????????? | | ## ### #???????????????????????????????? | | # %##########+####????????????????????????????? | | % % #????????????????????????????? | | = %%% #????????????????????????????? | | %*% ? #????????????????????????????? | | # ###+####### #????????????????????????????? | | ## ## #??# ? #????????????????????????????? | | ?# ##"S #??# ########?????????????????????? | | ?# ##""" #??# ## #?????????????????????? | | ?# ## "" #??# #?????????????????????? | | ?# ## #### #### @ #?????????????????????? | | ?# ## /[%[[[ #??# #?????????????????????? | | ?# ## #####+##### g #?????????????????????? | | # ## """ ## #%=! #######??????????????? | | # ## """ ## """ *= #??????????????? | | # ## """ ## """ """ #??????????????? | | + ## """ ## """ Y """"" #??????????????? | | # ## """ ## """"" ???????????????? | | # ## ## "" # """" #??????????????? | | # ##+####### """ # """ #??????????????? | | ## ##????# S" # #??????????????? | | # ##????# # #??????????????? | | # ################ ##/###??????????????? | | + # [[ #???????##### ? ???????????????? | | # + [[ ! #???????????? ?? ?????????????? | | # # [[ #???????????????? ???????????? | | + #########????????????????? ??????????? | | ###+###+###???????????????????????###????????????? | | %%! !=%%! #??????????????????????????????????????? | | "="""[""" #??????????????????????????????????????? | | " """ """ #??????????????????????????????????????? | | " """ """ #??????????????????????????????????????? | | #??????????????????????????????????????? | | ! = #??????????????????????????????????????? | | ###########??????????????????????????????????????? | +----------------------------------------------------+ Best States ------------- Heat Dissipation 55 Energy Generation 14 Energy Capacity 250 Matter Stores 300 Matter Capacity 300 Sight Range 16 Robot Scan Range 14 Terrain Scan Density 10 Armor Coverage 225 Evasion (%) 44 Item Schematics ----------------- None Robot Schematics ------------------ None Fabricated ------------ Nothing Alien Tech Used ----------------- None Achievements -------------- None Challenges ------------ None RPGLIKE | -11 -10 -10 -9 --------- Run | Jun Mat Min Mat Levels Raised 3 | . . 1 2 XP Earned 8029 | 3000 1220 1450 2359 XP Spent 3450 | 3000 . 450 . Upgrades 11 | 6 . 5 . Propulsion Slot 1 | 1 . . . Utility Slot 1 | 1 . . . Weapon Slot 1 | 1 . . . Heat Dissipation 5 | . . 5 . Inventory Capacity 3 | 3 . . . Protomatter Created 78 | . 28 50 . Integrity Restored 204 | . 54 150 . Core 204 | . 54 150 . Protomatter Decayed 47 | . . 47 . Game ------ Seed AssemblyDrainedNanovents Manual? 0 Play Time 00:12:39 Cumulative 72.5 hours Start 2024.02.22 @ 22:08:54 End 2024.02.22 @ 22:18:46 Sessions 1 Manual Loads 0 Difficulty Rogue Special Mode Winter2019/RPGLIKE Game No. 58 Rogue 56 Adventurer 2 Explorer 0 Win Type - Total 2 Types 1/1/0/0/0/0/0/0/0 Lore% 36 Gallery% 61 Achievement% 45 Wizard Run 0 Options --------- ASCII 0 Keyboard 0 Movement Mouse Keybinds 1 Fullscreen 2 Font 18/SmallcapsGlow Map View 76x50 Tactical HUD 1 Map Filters NONE Filters NONE Steam 1 RUN: 1139ba41-2396-48c2-afcc-053b4bd2c026